bitfinex-derivatives/quotes_ETHF0:USTF0_20250612
["timestamp","ask_amount","ask_price","bid_price","bid_amount"]
[1749688695856,1.02590275,2768.0,2767.7,3.2078]
[1749688696062,0.289,2767.9,2767.8,0.72238]
[1749688696354,0.289,2767.9,2767.7,3.2078]
[1749688696557,0.72238,2767.8,2767.5,1.92694]
[1749688696756,0.289,2767.9,2767.8,0.72238]
[1749688697154,0.289,2767.9,2767.8,2.66608]
[1749688697953,3.2078,2768.4,2768.3,0.72225]
[1749688698159,29.9098,2769.0,2768.3,3.2078]
[1749688698456,0.72213,2768.8,2768.5,0.72218]
[1749688698660,1.02403189,2768.7,2768.5,0.72218]
[1749688698852,0.72219,2768.5,2768.4,0.00542025]
[1749688699357,30.19976148,2769.0,2768.4,0.00542025]
[1749688699564,1.74551701,2768.9,2768.5,0.72217]
[1749688699753,30.19976148,2769.0,2768.4,0.00542025]
[1749688699958,0.72219,2768.5,2768.4,0.00542025]
[1749688700254,30.19976148,2769.0,2768.7,0.72212]
[1749688700563,0.72212,2768.8,2768.6,3.2078]
[1749688701062,29.9098,2769.0,2768.6,3.2078]
[1749688701258,0.7221,2768.9,2768.6,3.92996]
[1749688701556,0.72212,2768.8,2768.6,3.2078]
[1749688701757,0.72212,2768.8,2768.6,3.92996]
[1749688702059,3.2078,2769.0,2768.6,3.2078]
[1749688702258,0.7221,2768.9,2768.7,1.2197]
[1749688702657,0.7221,2768.9,2768.7,1.94184]
[1749688702857,0.72208,2769.0,2768.7,1.94182]
[1749688703058,0.72208,2769.0,2768.8,0.7221]
[1749688703557,1.00254152,2769.2,2768.7,1.2197]
[1749688703758,5.55903,2769.2,2769.0,0.72205]
[1749688703959,0.72207,2769.0,2768.8,0.7221]
[1749688704763,0.72208,2769.0,2768.8,0.72211]
[1749688704962,0.72208,2769.0,2768.9,0.72209]
[1749688705164,4.837,2769.2,2768.9,0.72208]
[1749688705362,0.72205,2769.1,2768.7,1.8615]
[1749688705763,0.72205,2769.1,2768.8,1.2337]
[1749688706060,5.55902,2769.2,2768.8,1.2337]
[1749688706265,5.55902,2769.2,2769.0,0.72205]
[1749688706766,0.72192,2769.6,2768.9,5.01298]
[1749688707063,0.29399995,2769.6,2769.2,0.72201]
[1749688707270,1.80481,2769.6,2769.0,0.72205]
[1749688707566,0.72205,2769.1,2768.9,3.2078]
[1749688707862,1.2318,2769.5,2768.9,3.92987]
[1749688708064,5.0127,2769.4,2768.6,3.2078]
[1749688708267,0.72214,2768.7,2768.6,3.2078]
[1749688708562,3.2078,2769.1,2768.6,3.2078]
[1749688708761,0.72214,2768.7,2768.6,3.2078]
[1749688709463,0.72219,2768.5,2768.3,3.2078]
[1749688709665,0.72218,2768.6,2768.5,0.72219]
[1749688709865,4.779,2768.8,2768.3,3.2078]
[1749688710062,1.2621,2769.0,2768.3,5.01338]
[1749688710262,0.72206,2769.0,2768.9,0.72208]
[1749688710463,4.779,2769.3,2768.9,3.2078]
[1749688710665,0.72197,2769.4,2769.0,1.1887]
[1749688710864,0.72199,2769.3,2769.2,0.722]
[1749688711063,0.72199,2769.3,2769.1,0.72202]
[1749688711268,3.7961,2769.5,2769.2,0.72201]
[1749688711469,3.7961,2769.5,2769.1,0.72202]
[1749688711768,0.722,2769.3,2769.1,0.72202]
[1749688712262,3.7961,2769.5,2769.0,1.7921]
[1749688712465,3.7961,2769.5,2769.2,0.722]
[1749688712664,0.72196,2769.4,2769.2,0.722]
[1749688712858,3.7961,2769.5,2769.2,0.722]
[1749688713062,0.72196,2769.4,2769.2,0.722]
[1749688713263,3.7961,2769.5,2769.0,1.7921]
[1749688713471,0.722,2769.3,2769.1,0.72202]
[1749688713661,3.92974,2769.5,2769.0,1.7921]
[1749688713963,3.2078,2769.8,2769.6,0.7219]
[1749688714164,0.72188,2769.7,2769.5,0.72192]
[1749688714562,3.2078,2769.8,2769.4,1.2538]
[1749688714863,0.28229233,2770.2,2769.6,3.2078]
[1749688715070,6.0349,2770.3,2769.7,1.8022]
[1749688715266,6.0349,2770.3,2769.9,0.72181]
[1749688715466,0.72176,2770.2,2770.0,0.7218]
[1749688715669,3.2078,2770.5,2769.8,0.00542025]
[1749688715867,7.9858,2770.5,2769.8,1.21472025]
[1749688716166,3.2078,2770.5,2769.8,1.21472025]
[1749688716369,0.72174,2770.3,2769.8,1.21472025]
[1749688716564,0.72175,2770.2,2770.0,0.72178]
[1749688717162,3.2078,2770.5,2769.9,7.9858]
[1749688717362,3.2078,2770.5,2770.2,0.72174]
[1749688717562,0.72172,2770.4,2770.1,0.72176]
[1749688717761,0.72171,2770.4,2770.1,0.72176]
[1749688718166,3.2078,2770.5,2770.1,0.72176]
[1749688718367,3.2078,2770.5,2770.1,0.72177]
[1749688718570,0.72173,2770.3,2770.1,0.72177]
[1749688719071,0.72157,2770.9,2770.6,0.72163]
[1749688719273,0.72157,2770.9,2770.2,3.2078]
[1749688719274,5.49853,2771.1,2770.8,0.72158]
[1749688719468,3.2078,2771.2,2770.8,3.2078]
[1749688719663,3.2078,2771.2,2771.1,0.72152]
[1749688719862,3.2078,2771.6,2770.9,3.62898]
[1749688720068,3.2078,2771.6,2771.5,0.72141]
[1749688720267,3.2078,2772.0,2771.3,17.41542025]
[1749688720469,3.2078,2772.0,2771.3,18.61442025]
[1749688720667,3.2078,2772.0,2771.6,0.72137]
[1749688720861,3.2078,2772.0,2771.7,1.2807]
[1749688721068,0.72135,2771.8,2771.5,0.72141]
[1749688721375,0.72139,2771.6,2771.3,2.00757025]
[1749688721774,3.2078,2772.0,2771.3,1.28612025]
[1749688721977,0.72135,2771.8,2771.4,0.72142]
[1749688722269,29.8248,2772.7,2771.5,3.2078]
[1749688722462,7.9838,2772.7,2772.0,3.2078]
[1749688722666,8.2748929,2772.7,2772.2,0.72123]
[1749688722868,0.72121,2772.3,2772.1,1.2807]
[1749688723072,0.72123,2772.2,2772.1,1.2807]
[1749688723374,8.2748929,2772.7,2772.1,1.2807]
[1749688723571,1.2602,2772.6,2772.1,1.2807]
[1749688723770,0.72123,2772.2,2772.1,1.2807]
[1749688723973,0.72119,2772.4,2772.1,1.2807]
[1749688724271,1.2602,2772.6,2772.0,3.2078]
[1749688724272,0.72123,2772.2,2772.0,3.2078]
[1749688724567,0.72122,2772.3,2772.0,3.92907]
[1749688724966,3.4988929,2772.7,2772.0,3.2078]
[1749688725164,1.80224,2773.5,2772.7,0.72108]
[1749688725368,0.72105,2772.9,2772.8,0.00541038]
[1749688727177,1.95205,2772.9,2772.8,0.00541038]
[1749688727676,3.2078,2773.4,2772.8,3.21321038]
[1749688727876,3.2078,2773.7,2772.9,1.2356]
[1749688728077,3.92866,2773.7,2773.4,0.72091]
[1749688728272,0.72083,2773.8,2773.5,0.72088]
[1749688728470,3.4988929,2774.1,2773.4,0.72092]
[1749688728471,3.2078,2774.1,2773.4,0.72092]
[1749688728672,0.72085,2773.7,2773.5,0.72087]
[1749688728967,3.2078,2774.1,2773.4,6.0096]
[1749688729279,0.72081,2773.8,2773.7,3.2078]
[1749688729773,6.66185285,2774.7,2773.1,3.92879]
[1749688729774,0.72096,2773.3,2773.1,3.92879]
[1749688729973,0.72092,2773.4,2773.1,3.2078]
[1749688730174,0.72093,2773.4,2773.2,0.72097]
[1749688730371,0.72093,2773.4,2773.1,4.3857]
[1749688730568,4.437,2773.8,2773.1,4.3857]
[1749688730569,3.2078,2773.8,2773.1,4.3857]
[1749688730773,0.72088,2773.6,2773.4,3.2078]
[1749688730976,0.72089,2773.5,2773.4,3.2078]
[1749688731179,3.2078,2773.8,2773.1,0.72098]
[1749688731374,0.72091,2773.5,2773.0,45.25]
[1749688731574,1.2292,2773.7,2773.1,1.1779]
[1749688731876,1.2292,2773.7,2773.0,1.96321]
[1749688731877,0.72097,2773.3,2773.0,1.96321]
[1749688732071,0.72099,2773.2,2773.0,4.45]
[1749688732268,4.773,2773.4,2772.8,0.00541038]
[1749688732476,0.72102,2773.0,2772.8,1.18331038]
[1749688732678,0.72096,2773.3,2772.8,1.18331038]
[1749688732877,4.773,2773.4,2772.8,1.18331038]
[1749688733078,0.72095,2773.3,2773.1,3.92878]
[1749688733281,5.49394,2773.4,2773.1,3.92878]
[1749688733579,5.49394,2773.4,2772.8,1.18331038]
[1749688733580,4.773,2773.4,2772.8,4.39111038]
[1749688733780,0.72101,2773.1,2772.9,0.72104]
[1749688734175,0.72105,2772.9,2772.8,0.00541038]
[1749688735076,0.72104,2773.0,2772.8,0.00541038]
[1749688735284,0.72104,2773.0,2772.8,0.72647038]
[1749688735486,0.72105,2772.9,2772.8,0.00541038]
[1749688736078,3.92885,2772.9,2772.8,0.00541038]
[1749688736278,5.10925,2772.9,2772.8,0.00541038]
[1749688736480,3.2078,2772.9,2772.8,0.00541038]
[1749688736685,3.92885,2772.9,2772.8,0.00541038]
[1749688736880,3.2078,2772.9,2772.8,0.72649038]
[1749688737685,3.92885,2772.9,2772.8,0.00541038]
[1749688740480,3.92885,2772.9,2772.8,0.72648038]
[1749688740680,3.92885,2772.9,2772.8,0.00541038]
[1749688741483,3.92885,2772.9,2772.8,0.72648038]
[1749688741688,3.2078,2772.9,2772.8,0.72648038]
[1749688741884,4.93050239,2772.9,2772.8,0.00541038]
[1749688743383,4.20945239,2772.9,2772.8,0.72648038]
[1749688743586,1.00165239,2772.9,2772.8,3.93428038]
[1749688743992,1.36433,2773.4,2773.1,0.721]
[1749688744187,1.00381677,2773.3,2773.2,0.72097]
[1749688744987,1.00381677,2773.3,2773.2,3.92877]
[1749688745187,1.00381677,2773.3,2773.2,13.72277]
[1749688745695,3.2078,2773.9,2773.8,0.72081]
[1749688746094,2.1137822,2774.1,2773.9,0.72079]
[1749688746391,4.794,2774.3,2773.5,0.72089]
[1749688746392,3.2078,2774.0,2773.5,0.72089]
[1749688746593,2.8547662,2773.9,2773.7,0.72083]
[1749688746790,0.72081,2773.8,2773.6,0.72085]
[1749688747193,2.1339662,2773.8,2773.2,1.2587]
[1749688747493,2.8547962,2773.8,2773.6,0.72085]
[1749688747684,2.1339662,2773.8,2773.2,1.2587]
[1749688747892,0.72098,2773.2,2773.0,0.72101]
[1749688748090,0.72096,2773.3,2772.9,0.6503]
[1749688748389,2.1339662,2773.3,2773.1,0.72098]
[1749688748592,2.1339662,2773.3,2773.0,0.72101]
[1749688748593,2.1339662,2773.2,2773.0,0.72101]
[1749688748787,2.1339662,2773.2,2773.1,3.92879]
[1749688749099,2.1339662,2773.2,2773.1,0.721]
[1749688749290,3.57092021,2773.4,2773.2,0.72096]
[1749688749595,3.57093021,2773.4,2773.1,0.72098]
[1749688749795,3.57093021,2773.4,2773.2,0.72097]
[1749688750294,3.57093021,2773.3,2773.2,0.72097]
[1749688750594,2.84999021,2773.3,2773.2,0.72097]
[1749688750787,2.84999021,2773.4,2773.3,0.72094]
[1749688750987,3.57091021,2773.4,2773.2,0.72096]
[1749688751897,0.72092,2773.4,2773.3,0.72094]
[1749688752200,2.14399169,2773.4,2773.1,1.2955]
[1749688752398,2.14399169,2773.4,2773.3,0.72093]
[1749688752898,2.14399169,2773.4,2773.3,3.92873]
[1749688753100,2.84999021,2773.7,2773.4,0.72092]
[1749688753101,2.14399169,2773.5,2773.4,0.72092]
[1749688753298,2.14399169,2773.7,2773.6,0.72087]
[1749688753493,2.14399169,2773.8,2773.7,0.72084]
[1749688753697,3.48938169,2773.9,2773.8,0.72081]
[1749688753896,1.3454,2773.9,2773.8,0.72081]
[1749688754102,0.72082,2773.8,2773.7,0.72083]
[1749688754401,2.14659941,2773.8,2773.3,3.2078]
[1749688754591,2.14659941,2773.7,2773.3,3.2078]
[1749688754796,2.14659941,2773.6,2773.0,4.4413]
[1749688754991,0.72095,2773.3,2773.0,4.4413]
[1749688755196,0.72094,2773.4,2773.3,0.72094]
[1749688755498,2.86749941,2773.5,2773.4,0.72091]
[1749688755701,0.72098,2773.2,2773.1,0.72098]
[1749688755899,2.86751941,2773.4,2773.3,0.72094]
[1749688756196,2.14659941,2773.4,2772.9,1.2618]
[1749688756401,2.14659941,2773.3,2773.2,0.72097]
[1749688756603,0.72094,2773.4,2773.3,0.72094]
[1749688756802,2.14659941,2773.6,2773.0,4.4413]
[1749688757096,0.72094,2773.4,2773.0,4.4413]
[1749688757293,2.14659941,2773.5,2773.0,4.4413]
[1749688757499,0.721,2773.1,2773.0,3.92881]
[1749688757702,1.00335474,2773.1,2772.9,1.2618]
[1749688757897,1.00335474,2773.0,2772.9,3.24805]
[1749688758097,1.00335474,2773.0,2772.9,6.45585]
[1749688758803,1.72437474,2773.0,2772.9,3.8581]
[1749688759102,0.72105,2772.9,2772.8,0.00541038]
[1749688759402,1.72440474,2772.9,2772.8,0.72649038]
[1749688759798,1.72440474,2772.9,2772.8,0.00541038]
[1749688761604,2.20025474,2772.9,2772.1,0.6386]
[1749688761804,2.86939192,2772.7,2772.5,0.72114]
[1749688762003,1.00335474,2772.6,2772.5,1.97614]
[1749688762894,1.72448474,2772.6,2772.5,1.255]
[1749688763802,1.00335474,2772.6,2772.5,1.97615]
[1749688764405,0.00534671,2772.8,2772.7,0.7211]
[1749688764604,1.00851335,2772.8,2772.7,3.9289]
[1749688765008,1.72959335,2772.8,2772.7,3.9289]
[1749688765206,1.00851335,2772.8,2772.7,3.9289]
[1749688765603,1.00851335,2772.8,2772.6,0.72112]
[1749688765800,1.00316664,2772.7,2772.6,3.2078]
[1749688765997,1.00316664,2772.7,2772.6,3.92893]
[1749688766199,1.00316664,2772.7,2772.6,8.92893]
[1749688766407,0.00534671,2772.8,2772.7,0.7211]
[1749688766906,1.00732419,2772.8,2772.7,0.7211]
[1749688767103,2.14826192,2773.6,2773.5,0.72089]
[1749688767304,1.00003809,2773.6,2773.5,0.72089]
[1749688768408,0.72081,2773.9,2773.7,0.72083]
[1749688768711,1.72094025,2773.8,2773.6,0.72085]
[1749688769008,1.00013025,2773.7,2773.6,0.72085]
[1749688770510,0.72085,2773.7,2773.5,0.72089]
[1749688770806,0.9997071,2773.6,2773.5,3.92868]
[1749688771009,3.2078,2774.1,2773.7,0.72082]
[1749688771206,0.7208,2773.9,2773.7,0.72082]
[1749688771513,0.99973502,2773.8,2773.7,0.72082]
[1749688772013,0.7208,2773.9,2773.7,0.72083]
[1749688772208,0.72082,2773.8,2773.6,0.6311]
[1749688772409,0.72082,2773.8,2773.6,1.35195]
[1749688773811,0.7208,2773.9,2773.7,0.72082]
[1749688774010,0.72081,2773.8,2773.6,1.35195]
[1749688774409,0.72081,2773.9,2773.7,0.72084]
[1749688774610,0.72081,2773.9,2773.7,0.72082]
[1749688774912,11.55949,2774.4,2773.6,0.6311]
[1749688775112,0.7208,2773.9,2773.7,0.00541038]
[1749688775513,0.72081,2773.8,2773.7,0.00541038]
[1749688775708,0.7208,2773.9,2773.8,0.72081]
[1749688776212,0.72078,2774.0,2773.8,3.92861]
[1749688776409,0.72078,2774.0,2773.9,0.72079]
[1749688776609,0.72078,2774.0,2773.8,3.9286]
[1749688777005,0.72079,2773.9,2773.8,3.9286]
[1749688777207,0.72079,2773.9,2773.8,0.7208]
[1749688777409,0.72078,2774.0,2773.8,0.7208]
[1749688777609,0.72078,2774.0,2773.7,3.21321038]
[1749688777817,0.72079,2773.9,2773.8,0.7208]
[1749688778007,0.72075,2774.1,2774.0,0.72076]
[1749688778209,0.72075,2774.1,2773.7,3.21321038]
[1749688778210,9.7578,2774.4,2773.7,3.86391038]
[1749688778515,0.72082,2773.8,2773.7,0.00541038]
[1749688778716,0.72082,2773.8,2773.7,3.8e-07]
[1749688778717,3.92862,2773.8,2773.7,3.8e-07]
[1749688778916,9.9199261,2773.8,2773.7,3.8e-07]
[1749688779114,12.4413261,2773.8,2773.7,3.8e-07]
[1749688780811,12.1973261,2773.8,2773.7,3.8e-07]
[1749688781017,10.9488261,2773.8,2773.7,3.8e-07]
[1749688781214,6.74972,2773.8,2773.7,3.8e-07]
[1749688782114,6.11442,2773.8,2773.7,3.8e-07]
[1749688782515,0.72082,2773.8,2773.7,3.8e-07]
[1749688784020,3.92862,2773.8,2773.7,3.8e-07]
[1749688789629,5.14812,2773.8,2773.7,3.8e-07]
[1749688790336,6.13816354,2773.8,2773.7,3.8e-07]
[1749688790830,10.89416354,2773.8,2773.7,3.8e-07]
[1749688791230,4.91866354,2773.8,2773.7,3.8e-07]
[1749688791528,0.2373,2773.9,2773.7,3.8e-07]
[1749688791729,0.72081,2773.8,2773.7,0.72081038]
[1749688791930,0.95809,2773.9,2773.8,0.72081]
[1749688792128,0.95809,2773.9,2773.8,1.2833]
[1749688792335,0.2373,2773.9,2773.8,7.00411]
[1749688793330,0.95808,2773.9,2773.8,7.0041]
[1749688793527,0.95808,2773.9,2773.8,6.2833]
[1749688794329,0.7208,2773.8,2773.7,3.8e-07]
[1749688794838,0.95809,2773.9,2773.8,0.7208]
[1749688795036,0.7208,2773.8,2773.7,1.98022038]
[1749688795630,0.95809,2773.9,2773.7,1.98022038]
[1749688795831,0.95809,2773.9,2773.8,1.2594]
[1749688796334,0.2373,2773.9,2773.8,1.9802]
[1749688796540,0.2373,2773.9,2773.8,5.188]
[1749688797838,0.2373,2773.9,2773.8,10.188]
[1749688798030,0.00541,2774.0,2773.8,9.4672]
[1749688798239,0.00541,2774.0,2773.9,0.72078]
[1749688798437,0.00541,2774.0,2773.9,1.95898]
[1749688800442,0.72616,2774.0,2773.9,1.2382]
[1749688800644,0.00541,2774.0,2773.9,1.95898]
[1749688801340,0.72616,2774.0,2773.9,1.2382]
[1749688801639,0.7208,2773.8,2773.7,3.8e-07]
[1749688802846,1.9702,2773.8,2773.7,3.8e-07]
[1749688803236,12.65201029,2773.8,2773.7,3.8e-07]
[1749688803434,6.40261029,2773.8,2773.7,3.8e-07]
[1749688804042,0.00541,2774.0,2773.9,0.72078]
[1749688804238,0.00541,2774.0,2773.9,3.92858]
[1749688804541,0.72078,2773.9,2773.8,2.4498]
[1749688805142,0.72078,2773.9,2773.8,3.17061]
[1749688805349,0.72078,2773.9,2773.8,6.37839]
[1749688805641,0.72078,2773.9,2773.8,6.37841]
[1749688805842,0.72078,2773.9,2773.8,5.6576]
[1749688806237,0.72078,2773.9,2773.8,6.37841]
[1749688806437,0.72078,2773.9,2773.8,5.6576]
[1749688806643,0.72078,2773.9,2773.8,6.37841]
[1749688806845,0.72078,2773.9,2773.8,5.6576]
[1749688807144,0.72078,2773.9,2773.8,2.4498]
[1749688807346,0.72078,2773.9,2773.8,1.2174]
[1749688808245,0.72618,2774.0,2773.8,1.2174]
[1749688808549,0.72078,2773.9,2773.8,6.33799]
[1749688808844,0.72078,2773.9,2773.8,5.6172]
[1749688809035,0.72078,2773.9,2773.8,1.2174]
[1749688809238,0.72078,2773.9,2773.8,0.6239]
[1749688809641,0.00541,2774.0,2773.8,1.8792]
[1749688809835,0.00541,2774.0,2773.9,0.72078]
[1749688809836,0.72616,2774.0,2773.9,0.72078]
[1749688810036,0.00541,2774.0,2773.9,1.97608]
[1749688810644,0.00541,2774.0,2773.9,5.18388]
[1749688815445,0.00541,2774.0,2773.9,9.87588]
[1749688816345,0.72618,2774.0,2773.9,3.2078]
[1749688817449,0.00541,2774.0,2773.9,3.92859]
[1749688817650,0.00541,2774.0,2773.9,5.10449]
[1749688821654,0.72618,2774.0,2773.9,3.2078]
[1749688821854,0.00541,2774.0,2773.9,3.92859]
[1749688822260,0.00541,2774.0,2773.9,5.22459]
[1749688822552,0.72082,2773.8,2773.7,3.8e-07]
[1749688823251,9.91142656,2773.8,2773.7,3.8e-07]
[1749688824352,4.91142656,2773.8,2773.7,3.8e-07]
[1749688824554,9.91142656,2773.8,2773.7,3.8e-07]
[1749688831265,14.60142656,2773.8,2773.7,3.8e-07]
[1749688832453,15.89622656,2773.8,2773.7,3.8e-07]
[1749688833258,3.2078,2773.3,2771.4,3.2078]
[1749688833561,0.72147,2771.3,2771.2,2.479]
[1749688834362,0.72147,2771.3,2771.2,1.2353]
[1749688836160,0.72147,2771.3,2771.2,0.6232]
[1749688836353,0.72152,2771.1,2771.0,0.00541038]
[1749688839153,1.01012,2771.1,2771.0,0.00541038]
[1749688840265,0.72165,2770.6,2770.5,3.2078]
[1749688840565,3.4964,2771.1,2770.6,1.2202]
[1749688840763,4.693,2771.0,2770.6,1.2202]
[1749688840959,0.72163,2770.7,2770.6,1.2202]
[1749688841266,0.72159,2770.9,2770.7,0.72161]
[1749688841460,0.72159,2770.9,2770.8,1.2202]
[1749688844166,4.693,2771.0,2770.8,1.94179]
[1749688844460,3.4964,2771.1,2770.8,1.2202]
[1749688844667,4.21792,2771.1,2771.0,0.72155]
[1749688844861,4.21792,2771.1,2770.9,1.31896]
[1749688845061,0.72155,2771.0,2770.9,1.31896]
[1749688845263,4.21794,2771.1,2770.9,0.5974]
[1749688845464,0.72155,2771.0,2770.9,0.5974]
[1749688847160,0.72155,2771.0,2769.9,42.60458]
[1749688847161,0.72163,2770.7,2770.6,0.72164]
[1749688847668,0.72163,2770.7,2770.5,1.32566]
[1749688847966,0.72163,2770.7,2770.6,0.72163]
[1749688848169,0.72165,2770.6,2770.5,3.8118]
[1749688848561,6.49788,2771.0,2770.5,4.53346]
[1749688848761,0.72165,2770.6,2770.5,4.53346]
[1749688849569,6.49788,2771.0,2770.5,4.53346]
[1749688849767,0.72165,2770.6,2770.5,4.53346]
[1749688849963,0.72164,2770.7,2770.6,0.72165]
[1749688850163,4.694,2771.0,2770.6,0.72165]
[1749688850373,0.72163,2770.7,2770.6,0.72165]
[1749688850564,0.72161,2770.8,2770.5,3.8118]
[1749688850764,4.694,2771.0,2770.5,3.8118]
[1749688851062,0.72157,2770.9,2770.8,0.72159]
[1749688851265,0.72161,2770.8,2770.7,0.72162]
[1749688852361,0.72155,2771.0,2770.9,0.0620172]
[1749688852665,0.72155,2771.0,2770.9,7.2e-06]
[1749688852867,29.39325,2771.0,2770.9,7.2e-06]
[1749688853068,0.72168,2770.5,2770.4,7.58e-06]
[1749688853374,0.72191,2769.6,2769.5,3.2078]
[1749688853664,5.01239,2769.9,2769.2,0.6223]
[1749688853867,4.694,2769.8,2769.2,0.6223]
[1749688854066,0.72199,2769.3,2769.2,0.6223]
[1749688854264,0.72199,2769.3,2769.2,0.62771038]
[1749688854461,4.69941038,2769.8,2769.7,0.72189]
[1749688854462,0.00541038,2769.8,2769.7,0.72189]
[1749688854662,0.00541038,2769.8,2769.6,3.2078]
[1749688854856,0.72189,2769.7,2769.6,3.2078]
[1749688855565,0.72196,2769.4,2769.3,1.2288]
[1749688855766,4.695,2769.7,2769.3,1.2288]
[1749688856267,0.72196,2769.4,2769.3,1.2288]
[1749688857071,4.695,2769.7,2769.3,1.2288]
[1749688857272,0.72196,2769.4,2769.3,1.2288]
[1749688857671,0.72199,2769.3,2769.2,0.00541038]
[1749688860268,0.2888,2769.4,2768.5,3.2078]
[1749688860474,0.72217,2768.6,2768.5,4.4221]
[1749688860869,0.72217,2768.6,2768.5,1.2143]
[1749688861372,1.2981,2769.2,2768.5,1.2143]
[1749688861373,3.2078,2769.5,2768.5,9.4221]
[1749688861571,0.00541038,2769.8,2769.3,0.72199]
[1749688861774,0.00541038,2769.8,2769.7,0.72189]
[1749688861973,0.00541038,2769.8,2769.7,3.92969]
[1749688862270,5.4127,2770.5,2769.7,3.2078]
[1749688862473,4.691,2770.5,2769.8,1.3015]
[1749688862669,3.2078,2770.6,2769.8,1.3015]
[1749688862869,3.2078,2770.6,2770.5,0.72168]
[1749688863177,3.2078,2770.6,2770.4,0.7217]
[1749688863474,3.2078,2770.6,2770.3,0.00541038]
[1749688863778,3.2078,2770.6,2770.3,0.59391038]
[1749688863968,3.2078,2770.6,2770.4,1.9215]
[1749688864372,3.92945,2770.6,2770.4,1.1998]
[1749688864875,3.2078,2770.6,2770.4,1.1998]
[1749688865386,0.72168,2770.5,2770.4,1.1998]
[1749688865578,0.72168,2770.5,2770.3,0.59391038]
[1749688866174,5.4127,2770.4,2770.3,0.00541038]
[1749688866777,4.691,2770.4,2770.3,0.00541038]
[1749688866978,3.2078,2770.6,2770.3,0.72714038]
[1749688867278,7.8988,2770.6,2770.3,0.00541038]
[1749688867471,0.7217,2770.4,2770.3,0.00541038]
[1749688867666,0.72169,2770.5,2770.3,0.72714038]
[1749688868066,0.72169,2770.5,2770.3,0.00541038]
[1749688868876,0.72169,2770.5,2770.3,0.72714038]
[1749688869174,0.00541038,2770.8,2770.7,0.72163]
[1749688869376,0.98672592,2770.8,2770.7,0.72163]
[1749688869778,0.72701038,2770.8,2770.6,0.72164]
[1749688869971,0.72163,2770.7,2770.6,0.6406]
[1749688870169,0.00541038,2770.8,2770.7,0.72163]
[1749688870770,0.00541038,2770.8,2770.7,5.72163]
[1749688870970,0.72143,2771.5,2771.3,0.72147]
[1749688871381,0.7214,2771.6,2771.4,0.72143]
[1749688871576,0.7214,2771.6,2771.4,1.97373]
[1749688871771,5.41237,2771.7,2771.5,0.72141]
[1749688871979,5.41238,2771.7,2771.5,0.72141]
[1749688872482,4.691,2771.7,2771.1,0.634]
[1749688872781,1.2481,2771.6,2771.1,0.634]
[1749688872986,1.2481,2771.6,2771.1,1.826]
[1749688873179,0.72148,2771.3,2771.1,2.54751]
[1749688873676,0.72148,2771.3,2771.2,0.7215]
[1749688873882,0.72148,2771.3,2771.1,2.54751]
[1749688874382,1.2481,2771.6,2771.1,2.54751]
[1749688874578,0.7215,2771.3,2771.1,2.54751]
[1749688875288,0.7215,2771.2,2771.1,1.826]
[1749688875580,0.72151,2771.2,2771.0,1.36214]
[1749688875780,0.72152,2771.1,2771.0,0.6406]
[1749688875979,0.00541038,2771.8,2771.7,0.72137]
[1749688876176,0.72677038,2771.8,2771.6,3.92918]
[1749688876372,0.00541038,2771.8,2771.3,3.92926]
[1749688876573,4.69541038,2771.8,2771.3,3.2078]
[1749688876786,4.69541038,2771.8,2771.1,0.6115]
[1749688876975,4.36977,2771.7,2771.1,1.33302]
[1749688877178,0.72148,2771.3,2771.1,1.33302]
[1749688877378,0.72146,2771.4,2771.2,0.72149]
[1749688877779,0.72146,2771.4,2771.3,0.72147]
[1749688877977,0.72141,2771.6,2771.3,3.2078]
[1749688878183,4.69,2771.5,2771.4,0.72143]
[1749688878485,5.41141,2771.6,2771.4,1.89723]
[1749688878874,0.00541038,2771.8,2771.7,0.72137]
[1749688880170,3.2078,2772.7,2771.7,5.0]
[1749688880375,3.92892,2772.7,2772.2,3.2078]
[1749688880576,0.72114,2772.6,2772.4,0.72116]
[1749688880979,0.72116,2772.5,2772.3,1.90449]
[1749688881181,0.72124,2772.2,2772.1,0.00541038]
[1749688881582,5.41024,2772.2,2772.1,0.00541038]
[1749688882385,6.02134,2772.2,2772.1,0.00541038]
[1749688882682,7.27734,2772.2,2772.1,0.00541038]
[1749688885384,0.72139,2771.6,2771.5,1.1833]
[1749688885585,0.72144,2771.4,2771.3,3.8257]
[1749688885792,3.2078,2771.6,2771.0,3.2078]
[1749688886089,0.72152,2771.1,2771.0,3.2078]
[1749688886788,0.72152,2771.2,2771.0,3.92933]
[1749688887282,0.72155,2771.0,2770.9,1.1982]
[1749688887480,0.72157,2770.9,2770.8,0.61981038]
[1749688887676,0.72157,2770.9,2770.8,0.00541038]
[1749688889089,7.8928,2771.0,2770.8,0.72701038]
[1749688889290,0.72151,2771.2,2770.8,0.00541038]
[1749688889589,0.72151,2771.2,2771.0,0.72153]
[1749688889886,0.00541038,2771.3,2771.2,0.7215]
[1749688892090,3.2078,2771.9,2771.3,1.80362]
[1749688892301,3.2078,2771.9,2771.4,4.4402]
[1749688892491,0.72135,2771.8,2771.6,0.72137]
[1749688892789,0.72135,2771.8,2771.7,1.2324]
[1749688894593,0.00541038,2772.0,2771.5,0.72141]
[1749688894783,0.00541038,2772.0,2771.5,1.94511]
[1749688894988,0.72139,2771.6,2771.5,1.2237]
[1749688895188,0.00541038,2772.0,2771.5,1.2237]
[1749688895591,0.72138,2771.7,2771.5,1.9451]
[1749688896192,0.72139,2771.6,2771.5,1.9451]
[1749688896391,0.72139,2771.6,2771.5,1.2237]
[1749688896595,0.72138,2771.7,2771.5,1.94512]
[1749688896797,0.72138,2771.7,2771.6,0.72139]
[1749688897498,0.72138,2771.7,2771.5,1.9451]
[1749688898186,0.00541038,2772.0,2771.5,1.9451]